bitfinex/quotes_SOLUSD_20250924
["timestamp","ask_amount","ask_price","bid_price","bid_amount"]
[1758706153730,0.2,210.52,210.48,0.68]
[1758706153932,0.2,210.52,210.45,2.35207735]
[1758706153933,0.2,210.52,210.49,0.68]
[1758706154821,4.95023623,210.52,210.49,0.68]
[1758706157830,4.95023623,210.52,210.5,0.68]
[1758706158136,4.95023623,210.52,210.47,4.75122354]
[1758706158438,2.79207735,210.51,210.44,62.48]
[1758706158626,2.79207735,210.51,210.45,0.68]
[1758706160242,7.10264444,210.51,210.45,5.43170937]
[1758706160442,7.10264444,210.51,210.46,0.68]
[1758706160938,7.10264444,210.51,210.47,0.66]
[1758706161641,0.44,210.5,210.44,64.83207735]
[1758706161943,0.44,210.5,210.44,65.49207735]
[1758706162122,7.10264444,210.51,210.45,0.66]
[1758706162323,7.10264444,210.51,210.45,5.41169353]
[1758706162519,7.10264444,210.51,210.46,0.66]
[1758706162736,4.75056709,210.51,210.47,0.66]
[1758706169042,4.75056709,210.51,210.48,0.66]
[1758706174661,2.99207735,210.52,210.48,7.76308263]
[1758706174662,0.2,210.52,210.48,7.76308263]
[1758706174952,0.2,210.52,210.49,37.14]
[1758706175268,0.2,210.52,210.5,2.35207735]
[1758706175438,0.2,210.52,210.5,3.01207735]
[1758706175629,0.2,210.52,210.51,0.66]
[1758706176263,0.2,210.52,210.51,3.01207735]
[1758706176468,0.2,210.52,210.51,7.7624455]
[1758706178975,0.2,210.52,210.51,21.50020108]
[1758706179354,4.74806242,210.62,210.56,2.35207735]
[1758706179669,4.74806242,210.62,210.57,37.18]
[1758706179855,4.74806242,210.62,210.58,0.66]
[1758706180057,4.74770926,210.63,210.59,0.66]
[1758706180259,4.74770926,210.63,210.6,0.66]
[1758706181253,4.74747431,210.64,210.6,3.01207735]
[1758706182168,4.74721101,210.65,210.6,3.01207735]
[1758706182482,4.74699657,210.66,210.61,0.66]
[1758706182663,4.74672737,210.68,210.62,2.35207735]
[1758706182978,4.74672737,210.68,210.63,0.66]
[1758706183183,4.74672737,210.68,210.64,3.01207735]
[1758706184463,5.58633652,210.69,210.65,0.66]
[1758706184884,4.94633652,210.69,210.64,2.35207735]
[1758706185083,4.94633652,210.69,210.66,0.66]
[1758706186476,0.2,210.69,210.66,2.35207735]
[1758706186790,0.2,210.69,210.67,0.66]
[1758706187567,0.2,210.69,210.68,3.01207735]
[1758706187769,0.2,210.69,210.68,42.60767136]
[1758706187996,0.2,210.69,210.68,79.12767136]
[1758706188195,0.2,210.69,210.68,84.0159093]
[1758706188564,0.2,210.69,210.68,88.76244432]
[1758706200618,0.2,210.69,210.68,87.91133827]
[1758706206116,0.2,210.72,210.71,26.14216157]
[1758706206301,0.2,210.73,210.72,0.14216157]
[1758706206508,0.2,210.73,210.72,0.82216157]
[1758706207209,0.2,210.73,210.72,2.72388977]
[1758706207937,0.2,210.73,210.72,7.46952378]
[1758706209722,0.2,210.73,210.72,21.06511779]
[1758706210058,0.2,210.77,210.74,39.73775558]
[1758706210204,0.2,210.77,210.76,39.59559401]
[1758706210727,0.2,210.77,210.76,40.27559401]
[1758706210914,0.2,210.77,210.76,42.17705101]
[1758706211109,0.84,210.84,210.76,42.17705101]
[1758706211416,0.84,210.84,210.78,15.23872688]
[1758706211621,0.2,210.84,210.78,15.23872688]
[1758706211810,0.2,210.84,210.78,20.66301001]
[1758706213032,0.2,210.84,210.81,39.59559401]
[1758706213226,0.2,210.84,210.81,77.57656531]
[1758706213428,0.2,210.84,210.81,78.39872688]
[1758706213728,0.2,210.84,210.81,80.29964169]
[1758706214331,0.2,210.84,210.81,85.04324967]
[1758706215332,0.2,210.84,210.81,71.44765566]
[1758706217137,0.2,210.84,210.81,99.37950126]
[1758706217635,0.2,210.84,210.81,98.69950126]
[1758706218018,0.2,210.84,210.81,99.37950126]
[1758706218433,0.64,210.83,210.81,76.79625159]
[1758706218633,0.2,210.84,210.81,78.29722289]
[1758706218931,0.2,210.84,210.81,78.43938446]
[1758706219827,0.2,210.84,210.81,83.18299244]
[1758706220139,5.58345591,210.82,210.76,1.5009713]
[1758706220432,0.64,210.81,210.77,36.48]
[1758706220642,0.64,210.8,210.77,36.48]
[1758706220811,0.64,210.8,210.77,50.48259087]
[1758706221018,0.64,210.8,210.77,36.48]
[1758706221926,0.2,210.82,210.78,6.93525443]
[1758706222260,0.84,210.82,210.79,36.48]
[1758706224042,0.2,210.82,210.79,36.48]
[1758706224438,0.84,210.82,210.79,36.48]
[1758706224843,0.64,210.81,210.8,36.48]
[1758706225064,0.64,210.81,210.78,1.5009713]
[1758706225228,0.64,210.81,210.8,36.48]
[1758706225549,0.84,210.82,210.8,36.48]
[1758706225932,0.2,210.82,210.8,36.48]
[1758706226138,0.2,210.82,210.77,27.5009713]
[1758706226139,0.64,210.81,210.77,27.5009713]
[1758706226357,0.64,210.8,210.78,36.48]
[1758706226533,4.94341226,210.82,210.78,36.48]
[1758706226735,0.64,210.79,210.78,36.48]
[1758706227456,0.84,210.82,210.78,36.48]
[1758706228152,0.84,210.82,210.78,41.22422406]
[1758706228538,0.64,210.81,210.78,41.22422406]
[1758706229353,0.2,210.82,210.78,41.22422406]
[1758706229557,0.84,210.82,210.78,41.22422406]
[1758706230046,0.84,210.82,210.78,41.91422406]
[1758706230862,0.2,210.82,210.78,41.91422406]
[1758706231252,0.2,210.82,210.79,1.5009713]
[1758706231456,0.2,210.82,210.8,36.46]
[1758706231653,0.2,210.82,210.81,0.69]
[1758706231855,0.2,210.82,210.8,36.46]
[1758706233759,0.2,210.82,210.8,36.46]
[1758706233961,4.94338546,210.82,210.8,36.46]
[1758706234180,0.64,210.81,210.8,36.46]
[1758706234855,4.94338546,210.82,210.8,36.46]
[1758706235055,1.5009713,210.81,210.8,36.46]
[1758706238052,6.24457928,210.81,210.8,36.44]
[1758706239041,1.5009713,210.81,210.8,36.44]
[1758706241354,6.44442638,210.82,210.8,36.44]
[1758706246665,6.44442638,210.82,210.8,37.13]
[1758706246861,6.44442638,210.82,210.8,36.44]
[1758706247879,1.7009713,210.82,210.8,37.13]
[1758706249897,0.2,210.82,210.81,0.69]
[1758706250358,0.2,210.82,210.8,36.44]
[1758706250679,4.94339017,210.82,210.8,37.16]
[1758706252786,0.2,210.82,210.8,37.16]
[1758706254487,4.94340345,210.82,210.8,37.16]
[1758706254990,0.2,210.82,210.8,36.44]
[1758706255173,0.2,210.82,210.81,0.72]
[1758706257086,0.2,210.82,210.81,5.46360798]
[1758706260491,0.2,210.82,210.81,20.70233486]
[1758706261479,0.2,210.82,210.81,22.60352072]
[1758706262690,0.2,210.82,210.81,23.44530082]
[1758706264994,0.2,210.82,210.81,49.44530082]
[1758706266573,0.2,210.84,210.82,13.73775558]
[1758706266774,0.2,210.84,210.83,78.44050698]
[1758706266974,0.2,210.84,210.83,53.15050698]
[1758706267170,0.2,210.84,210.83,57.89366497]
[1758706267687,0.2,210.84,210.83,59.79439913]
[1758706268583,0.2,210.86,210.85,26.0]
[1758706268795,0.2,210.86,210.85,64.7027514]
[1758706268995,0.2,210.86,210.85,65.4127514]
[1758706269301,0.2,210.86,210.85,72.05610332]
[1758706271395,0.2,210.88,210.87,0.14216157]
[1758706271587,1e-08,210.88,210.87,50.82775558]
[1758706272081,1e-08,210.88,210.87,52.72794798]
[1758706272275,0.2,210.92,210.89,42.08050698]
[1758706272276,1e-08,210.9,210.89,42.08050698]
[1758706272475,1e-08,210.9,210.89,78.46050698]
[1758706272782,1e-08,210.9,210.89,79.17050698]
[1758706273097,1e-08,210.9,210.89,81.07051886]
[1758706273318,1e-08,210.9,210.89,85.81232738]
[1758706276813,1e-08,210.92,210.91,39.73775558]
[1758706277111,1e-08,210.92,210.91,78.46050698]
[1758706277414,0.1,211.04,211.0,13.59559401]
[1758706277631,0.1,211.04,211.03,16.08050698]
[1758706277916,0.1,211.04,211.03,38.86491297]
[1758706278090,0.1,211.04,211.03,52.46050698]
[1758706278817,0.1,211.04,211.03,53.17050698]
[1758706279110,0.1,211.04,211.03,50.11775558]
[1758706279288,0.1,211.04,211.03,52.46050698]
[1758706280102,0.1,211.04,211.03,50.11775558]
[1758706280315,0.1,211.04,211.03,66.45296388]
[1758706281527,0.1,211.04,211.03,52.85736987]
[1758706281713,0.74,211.04,211.03,50.3724569]
[1758706282633,0.1,211.04,211.03,50.3724569]
[1758706283340,0.1,211.04,211.03,57.45387104]
[1758706284816,0.1,211.04,211.03,71.86162662]
[1758706287741,0.1,211.04,211.03,76.59849432]
[1758706290939,0.1,211.04,211.03,76.57849432]
[1758706292136,0.1,211.04,211.03,74.23574292]
[1758706292834,0.1,211.04,210.97,12.51990841]
[1758706292835,0.74,211.04,210.97,12.51990841]
[1758706293042,0.64,211.03,210.99,13.59559401]
[1758706293210,0.64,211.02,211.0,36.36]
[1758706293545,0.1,211.04,211.0,36.36]
[1758706293717,0.74,211.04,211.0,36.36]
[1758706293917,0.74,211.04,211.0,51.48575478]
[1758706294111,0.1,211.04,211.01,14.40775558]
[1758706294430,0.1,211.04,211.02,36.36]
[1758706294631,0.1,211.04,211.03,4.73866274]
[1758706297137,0.1,211.04,211.03,5.40866274]
[1758706297560,0.1,211.04,211.03,21.48916972]
[1758706298250,1e-08,211.04,211.03,23.38791892]
[1758706299738,1e-08,211.04,211.03,37.67791892]
[1758706301761,0.64,211.18,211.11,39.59559401]
[1758706301934,0.64,211.18,211.11,78.50050698]
[1758706302136,0.64,211.18,211.11,79.17050698]
[1758706302428,0.64,211.18,211.11,81.51325838]
[1758706302835,0.64,211.2,211.11,86.25012541]
[1758706303029,14.17717588,211.25,211.11,86.25012541]
[1758706303230,0.64,211.19,211.11,86.25012541]
[1758706304439,4.73505196,211.2,211.11,85.62012541]
[1758706304632,0.64,211.15,211.11,85.62012541]
[1758706304832,0.64,211.17,211.11,86.29012541]
[1758706305227,2.3427514,211.24,211.11,86.29012541]
[1758706305442,0.64,211.19,211.11,86.29012541]
[1758706308752,0.64,211.18,211.11,86.29012541]
[1758706309136,0.64,211.2,211.11,86.29012541]
[1758706309442,0.64,211.19,211.11,86.29012541]
[1758706310049,0.64,211.18,211.11,86.29012541]
[1758706310444,4.73482334,211.21,211.11,46.81737401]
[1758706310644,0.64,211.16,211.11,85.62012541]
[1758706310956,0.64,211.16,211.11,86.26012541]
[1758706311853,11.83528961,211.24,211.11,86.26012541]
[1758706312064,0.64,211.2,211.11,86.26012541]
[1758706312652,1e-08,211.12,211.11,86.26012541]
[1758706314873,1e-08,211.12,211.11,88.60287681]
[1758706315570,1e-08,211.12,211.11,102.89287681]
[1758706315754,1e-08,211.12,211.11,100.55012541]
[1758706318774,1e-08,211.12,211.11,120.55012541]
[1758706321375,1e-08,211.12,211.11,100.55012541]
[1758706321583,1e-08,211.12,211.11,99.89012541]
[1758706322086,1e-08,211.12,211.11,100.59012541]
[1758706322956,1e-08,211.12,211.11,100.55012541]
[1758706323157,1e-08,211.12,211.11,20.81737401]
[1758706323357,1e-08,211.12,211.11,59.56012541]
[1758706324079,1e-08,211.12,211.11,60.26012541]
[1758706324662,1e-08,211.12,211.11,59.41188977]
[1758706327083,0.64,211.21,211.15,39.59559401]
[1758706327260,0.64,211.21,211.2,0.14216157]
[1758706327464,0.64,211.21,211.2,50.13775558]
[1758706328470,0.1,211.26,211.21,13.59559401]
[1758706328777,0.1,211.26,211.22,36.4]
[1758706328979,0.1,211.26,211.22,41.13418626]
[1758706329180,0.64,211.25,211.22,41.13418626]
[1758706329387,0.1,211.26,211.25,39.73775558]
[1758706329582,0.1,211.26,211.25,77.73227134]
[1758706330292,0.1,211.26,211.25,78.43227134]
[1758706331198,0.1,211.26,211.25,83.16599915]
[1758706331576,0.1,211.26,211.25,69.57040514]
[1758706331779,0.1,211.26,211.25,83.16599915]
[1758706331978,0.1,211.26,211.25,46.66599915]
[1758706332182,0.1,211.26,211.25,83.14599915]
[1758706333667,0.1,211.26,211.25,80.95148339]
[1758706333993,0.1,211.26,211.25,83.14599915]
[1758706334380,0.1,211.26,211.25,85.04276753]
[1758706335374,0.1,211.26,211.25,82.44599915]
[1758706335571,0.74,211.26,211.25,13.59559401]
[1758706335803,0.74,211.26,211.25,50.05559401]
[1758706336698,0.74,211.26,211.25,54.93148339]
[1758706336871,0.1,211.26,211.25,54.93148339]
[1758706339890,0.74,211.26,211.25,50.07559401]
[1758706340191,0.74,211.26,211.23,13.59559401]
[1758706340504,0.64,211.25,211.24,36.48]
[1758706341194,0.64,211.25,211.24,50.21775558]
[1758706342206,0.64,211.25,211.24,54.95170748]
[1758706343112,0.64,211.25,211.22,14.38380578]
[1758706343286,0.64,211.24,211.23,50.21775558]
[1758706343699,0.1,211.26,211.23,50.21775558]
[1758706344090,0.64,211.25,211.23,50.21775558]
[1758706345101,0.64,211.25,211.23,54.95181088]
[1758706346005,0.64,211.24,211.23,50.21775558]
[1758706346607,0.74,211.26,211.23,54.95188211]
[1758706346908,0.64,211.25,211.23,54.95188211]
[1758706347787,0.1,211.26,211.23,56.44639787]
[1758706347981,0.1,211.26,211.23,57.14639787]
[1758706348178,0.1,211.26,211.24,13.73775558]
[1758706348407,0.1,211.26,211.25,51.55010977]
[1758706348783,0.1,211.26,211.25,50.75559401]
[1758706348979,0.1,211.26,211.25,52.25010977]
[1758706349184,0.1,211.26,211.25,57.12599915]
[1758706355801,0.1,211.26,211.25,71.35599915]
[1758706357917,0.1,211.26,211.25,69.86148339]
[1758706358095,0.1,211.26,211.25,71.35599915]
[1758706359009,0.1,211.26,211.25,69.86148339]
[1758706359215,0.1,211.26,211.25,71.35599915]
[1758706360291,0.1,211.26,211.25,69.86148339]
[1758706360612,0.74,211.26,211.25,13.59559401]
[1758706360813,0.74,211.26,211.25,51.53010977]
[1758706360992,0.74,211.26,211.25,56.26383758]
[1758706361197,0.74,211.26,211.25,56.40599915]
[1758706361411,0.74,211.26,211.25,56.26383758]
[1758706361617,0.1,211.26,211.25,54.76932182]
[1758706361818,0.1,211.26,211.25,56.26383758]
[1758706362111,0.1,211.26,211.25,56.40599915]
[1758706362319,0.74,211.26,211.25,54.91148339]
[1758706362508,0.74,211.26,211.25,56.40599915]
[1758706363317,0.74,211.26,211.25,54.91148339]
[1758706363495,0.1,211.26,211.25,54.91148339]
[1758706363696,0.1,211.26,211.21,18.64808741]
[1758706363697,0.74,211.26,211.21,18.64808741]
[1758706363907,0.64,211.25,211.22,13.59559401]
[1758706364090,0.64,211.24,211.22,50.05559401]
[1758706364307,0.64,211.23,211.22,50.05559401]
[1758706364509,0.64,211.25,211.22,54.78999416]
[1758706364703,0.1,211.26,211.22,54.78999416]
[1758706364704,0.1,211.26,211.24,15.09010977]
[1758706365018,0.1,211.26,211.25,50.19775558]
[1758706365514,0.74,211.26,211.25,50.19775558]
[1758706367322,0.1,211.26,211.25,54.93148339]
[1758706368701,0.1,211.26,211.25,57.12599915]
[1758706372802,0.1,211.26,211.25,55.65148339]
[1758706373001,0.1,211.26,211.25,57.14599915]
[1758706375524,0.1,211.26,211.25,71.37599915]
[1758706375711,0.1,211.26,211.25,69.88148339]
[1758706375916,0.1,211.26,211.25,71.37599915]
[1758706376421,0.1,211.26,211.25,69.88148339]
[1758706376724,0.1,211.26,211.25,71.37599915]
[1758706379808,0.1,211.26,211.25,69.88148339]
[1758706380009,0.1,211.26,211.25,71.37599915]
[1758706380420,0.1,211.26,211.25,18.47148339]
[1758706380626,0.1,211.26,211.25,18.32932182]
[1758706380627,0.74,211.26,211.25,18.32932182]
[1758706380837,0.74,211.26,211.25,54.78932182]
[1758706381014,0.74,211.26,211.21,13.9136804]
[1758706381214,0.64,211.25,211.18,1.49451576]
[1758706381532,0.64,211.24,211.2,13.73775558]
[1758706381739,0.64,211.23,211.21,36.48]
[1758706381949,0.64,211.22,211.21,36.48]
[1758706382510,1.99756828,211.25,211.21,36.48]
[1758706382747,0.64,211.25,211.22,13.73775558]
[1758706383041,0.1,211.26,211.24,13.73775558]
[1758706383218,0.1,211.26,211.25,50.19775558]
[1758706383535,0.1,211.26,211.25,50.23775558]
[1758706384430,0.1,211.26,211.25,54.97148339]
[1758706385128,0.74,211.26,211.25,50.23775558]
[1758706385331,0.1,211.26,211.22,4.87637584]
[1758706385522,0.64,211.25,211.23,36.5]
[1758706385920,2.09699483,211.26,211.2,13.59559401]
[1758706385921,0.64,211.24,211.2,13.59559401]
[1758706386121,0.64,211.23,211.21,36.52]
[1758706386324,1.99695398,211.25,211.22,14.27559401]
[1758706386528,0.1,211.26,211.22,14.27559401]
[1758706386529,0.1,211.26,211.23,36.52]
[1758706386730,0.64,211.25,211.23,36.52]
[1758706387127,0.1,211.26,211.23,41.25417271]
[1758706387327,0.1,211.26,211.24,14.41775558]
[1758706387533,0.1,211.26,211.25,36.56]
[1758706388633,0.1,211.26,211.25,41.97372781]
[1758706389454,0.1,211.26,211.25,41.29372781]
[1758706392722,0.1,211.26,211.25,41.97372781]
[1758706393223,0.1,211.26,211.25,41.29372781]
[1758706393719,0.1,211.26,211.25,41.97372781]
[1758706394126,0.1,211.26,211.25,41.29372781]
[1758706394563,0.1,211.26,211.25,55.03148339]
[1758706395561,0.1,211.26,211.25,55.71148339]
[1758706400530,0.1,211.26,211.25,19.15148339]
[1758706400848,0.1,211.26,211.25,54.84932182]
[1758706401047,0.1,211.26,211.25,50.11559401]
[1758706401451,0.1,211.26,211.25,54.84932182]
[1758706401648,0.1,211.26,211.25,54.99148339]
[1758706405453,0.1,211.26,211.25,55.70148339]
[1758706405852,0.1,211.26,211.25,58.03568408]
[1758706414857,0.1,211.26,211.25,20.80568408]
[1758706415053,0.1,211.26,211.25,54.82932182]
[1758706415259,0.74,211.26,211.25,54.82932182]
[1758706415552,0.1,211.26,211.25,54.82932182]
[1758706415778,0.1,211.26,211.25,54.97148339]
[1758706416770,0.1,211.26,211.25,55.68148339]
[1758706416960,0.1,211.26,211.25,54.97148339]
[1758706418485,0.1,211.26,211.25,54.99148339]
[1758706420070,0.1,211.26,211.24,4.7339281]
[1758706420291,0.1,211.26,211.22,37.83580974]
[1758706420292,0.64,211.25,211.23,18.32974795]
[1758706420477,2.43420069,211.26,211.24,36.52]
[1758706420788,2.43420069,211.26,211.22,30.73434648]
[1758706420789,2.43420069,211.26,211.25,36.52]
[1758706420989,4.43218073,211.26,211.25,36.52]
[1758706421195,5.07218073,211.26,211.25,36.52]
[1758706423062,9.80568446,211.26,211.25,36.52]
[1758706423675,21.6394438,211.26,211.14,36.96]
[1758706423981,2.33420069,211.2,211.15,50.11559401]
[1758706424185,2.97420069,211.2,211.15,50.11559401]
[1758706424488,0.64,211.2,211.15,50.82559401]
[1758706424786,0.64,211.2,211.15,55.56156369]
[1758706425084,2.63671921,211.2,211.15,55.56156369]
[1758706425471,2.63671921,211.2,211.16,0.14216157]
[1758706425667,2.63671921,211.2,211.17,36.52]
[1758706426179,0.64,211.2,211.17,36.52]
[1758706427066,0.64,211.2,211.17,41.25551277]
[1758706427267,2.33420069,211.21,211.17,41.25551277]
[1758706427468,2.33420069,211.21,211.13,37.84058003]
[1758706427469,2.33420069,211.19,211.11,4.73682805]
[1758706427668,4.73463533,211.21,211.08,5.4473446]
[1758706427669,2.33420069,211.15,211.08,5.4473446]
[1758706427864,2.33420069,211.15,211.09,13.59559401]
[1758706427865,0.64,211.14,211.09,13.59559401]
[1758706428102,4.32893607,211.14,211.09,50.15559401]
[1758706428406,0.64,211.14,211.09,50.86559401]
[1758706428574,0.64,211.14,211.1,0.14216157]
[1758706428775,0.64,211.14,211.09,50.86559401]
[1758706429197,0.64,211.13,211.09,36.56]
[1758706429397,0.64,211.12,211.07,13.59559401]
[1758706429692,0.64,211.12,211.08,36.56]
[1758706430064,2.33420069,211.13,211.08,42.00743648]
[1758706430569,0.64,211.13,211.08,42.00743648]
[1758706431381,7.7101806,211.15,211.08,42.00743648]
[1758706431565,7.06986775,211.17,211.09,3.00420069]
[1758706431769,1.98821397,211.16,211.1,0.67]
[1758706431970,1.98821397,211.16,211.11,36.54]
[1758706432171,0.64,211.15,211.11,36.54]
[1758706433273,0.64,211.14,211.11,36.54]
[1758706433675,7.07030171,211.15,211.11,36.54]
[1758706434099,2.33420069,211.13,211.05,26.67]
[1758706434276,0.64,211.12,211.06,41.27797363]
[1758706434597,7.71030171,211.15,211.07,0.67]
[1758706435673,4.73575214,211.16,211.08,4.73754026]
[1758706435868,2.33420069,211.15,211.09,37.23]
[1758706436787,2.33420069,211.15,211.1,4.73709142]
[1758706436988,2.33420069,211.15,211.1,5.40709142]
[1758706437182,0.64,211.16,211.1,4.73709142]
[1758706437383,28.97420069,211.18,211.11,0.67]
[1758706437702,28.97420069,211.18,211.12,36.54]
[1758706438183,28.97420069,211.18,211.12,37.21]
[1758706438585,23.66997985,211.24,211.12,37.21]
[1758706438586,2.33420069,211.2,211.13,3.00420069]
[1758706438785,2.33420069,211.2,211.14,0.67]
[1758706438992,2.33420069,211.2,211.15,4.73596968]
[1758706439199,2.33420069,211.2,211.16,36.56]
[1758706439390,2.97420069,211.2,211.16,36.56]
[1758706440087,0.64,211.19,211.16,36.56]
[1758706440290,2.97420069,211.18,211.16,36.56]
[1758706440789,2.33420069,211.18,211.16,36.56]
[1758706441697,0.64,211.17,211.16,36.56]
[1758706442000,0.64,211.17,211.13,36.54]
[1758706442192,2.33420069,211.13,211.12,36.54]
[1758706443109,16.57366656,211.18,211.12,36.54]
[1758706443110,2.33420069,211.19,211.12,41.94660381]
[1758706443310,2.33420069,211.19,211.13,0.67]
[1758706444417,0.64,211.21,211.14,4.73619399]
[1758706444418,5.37464408,211.21,211.14,4.73619399]
[1758706444719,26.0,211.22,211.15,0.67]
[1758706444720,2.33420069,211.2,211.15,0.67]
[1758706444893,2.33420069,211.2,211.16,36.58]
[1758706445279,2.33420069,211.2,211.16,37.25]
[1758706445899,133.9,211.25,211.16,37.25]
[1758706445900,2.33420069,211.25,211.17,0.67]
[1758706446405,7.06801516,211.25,211.18,4.7352969]
[1758706446582,1.49458987,211.24,211.19,0.67]
[1758706446781,1.49458987,211.24,211.2,37.29]
[1758706446999,0.64,211.23,211.2,36.62]
[1758706447191,1.49458987,211.22,211.2,36.62]
[1758706447394,0.64,211.21,211.18,36.6]
[1758706447578,1.49458987,211.19,211.18,36.6]
[1758706447782,0.64,211.24,211.18,37.27]
[1758706447783,1.49458987,211.21,211.18,37.27]
[1758706448485,1.49458987,211.21,211.18,42.00529402]
[1758706448684,1.49458987,211.21,211.18,41.33529402]
[1758706448892,1.49458987,211.21,211.19,0.67]
[1758706449583,1.49458987,211.23,211.18,41.33527017]
[1758706449789,1.49458987,211.23,211.19,0.67]
[1758706450802,6.22883513,211.23,211.19,0.67]
[1758706451185,1.49458987,211.23,211.2,0.67]
[1758706451586,6.22877017,211.23,211.18,41.33525742]
[1758706451807,6.22877017,211.23,211.19,0.67]
[1758706452005,1.49458987,211.24,211.2,0.67]
[1758706452209,1.49458987,211.24,211.21,0.67]
[1758706452410,1.49458987,211.24,211.22,36.62]
[1758706454710,1.49458987,211.24,211.22,37.29]
[1758706454890,4.73383228,211.25,211.22,37.29]
[1758706455091,1.49458987,211.24,211.22,36.62]
[1758706455504,1.49458987,211.24,211.15,0.14216157]
[1758706455700,1.49458987,211.2,211.16,37.27]
[1758706455898,1.49458987,211.2,211.17,0.67]
[1758706456904,6.22946218,211.2,211.16,36.6]
[1758706457088,6.22946218,211.2,211.16,37.27]
[1758706457708,6.22946218,211.2,211.17,0.67]
[1758706458094,4.73487231,211.2,211.17,0.67]
[1758706458711,4.73487231,211.2,211.16,36.6]
[1758706458918,4.7346243,211.21,211.16,37.27]
[1758706459299,4.7346243,211.21,211.17,0.67]
[1758706461208,1.98864731,211.2,211.17,0.67]
[1758706461517,1.98864731,211.2,211.16,36.6]
[1758706461721,1.98864731,211.2,211.16,37.31]
[1758706462123,1.98864731,211.2,211.17,0.71]
[1758706462618,6.72362977,211.2,211.16,36.6]
[1758706462818,6.72362977,211.2,211.09,11.84277407]
[1758706462819,1.49458987,211.18,211.07,1.49458987]
[1758706463003,1.49458987,211.16,211.09,0.71]
[1758706463198,1.98864731,211.15,211.09,0.71]
[1758706463798,6.72481234,211.15,211.09,0.71]
[1758706464014,1.98864731,211.14,211.09,0.71]
[1758706464214,1.98864731,211.14,211.1,0.71]
[1758706464908,1.98864731,211.14,211.11,0.71]
[1758706466429,6.72489002,211.14,211.11,0.71]
[1758706466603,1.98864731,211.13,211.09,4.7372304]
[1758706466810,1.98864731,211.13,211.09,5.4472304]
[1758706467028,1.98864731,211.13,211.1,0.71]
[1758706467637,1.98864731,211.13,211.1,4.73706317]
[1758706467831,6.23026697,211.17,211.1,4.73706317]
[1758706468130,1.99293715,211.16,211.11,0.71]
[1758706468335,1.99293715,211.15,211.12,37.29]
[1758706468535,1.99293715,211.14,211.12,37.29]
[1758706468732,1.99293715,211.13,211.12,37.29]
[1758706469413,1.99293715,211.15,211.12,37.29]
[1758706469610,1.99293715,211.15,211.13,0.71]
[1758706469832,1.99293715,211.15,211.12,36.58]
[1758706470030,1.99293715,211.15,211.12,37.29]
[1758706472054,6.7289186,211.15,211.12,37.29]
[1758706472216,1.99293715,211.14,211.12,37.29]
[1758706474233,1.99293715,211.13,211.12,37.29]
[1758706474428,1.99293715,211.15,211.12,37.29]
[1758706475030,6.72894518,211.15,211.12,37.29]
[1758706475238,1.99293715,211.14,211.12,37.29]
[1758706476117,7.36917114,211.14,211.12,36.58]
[1758706476439,1.99293715,211.13,211.12,36.58]
[1758706477925,6.72935547,211.13,211.12,36.58]
[1758706478434,8.22394534,211.13,211.02,26.20577196]
[1758706478736,1.99293715,211.12,211.06,0.71]
[1758706478948,1.99293715,211.12,211.07,36.54]
[1758706479147,1.99293715,211.12,211.08,0.71]
[1758706479618,4.73686703,211.11,211.08,0.71]
[1758706479917,1.99293715,211.1,211.08,0.71]
[1758706481023,6.73005124,211.1,211.07,36.54]